fUSD/lending_fUSD_20260610
["ID","MTS","AMOUNT","RATE_DAILY","PERIOD"]
[424684037,1781046669000,-543.83921636,0.00030455,2]
[424684038,1781046669000,-477.14965368,0.00030455,2]
[424684039,1781046669000,-457.37936928,0.00030455,2]
[424684036,1781046669000,-651.28032177,0.00030455,2]
[424684042,1781046669000,-822.2151076,0.00030455,2]
[424684052,1781046669000,-720.56279004,0.00030455,2]
[424684051,1781046669000,-839.87942085,0.00030455,2]
[424684050,1781046669000,-622.3394304,0.00030455,2]
[424684041,1781046669000,-630.41959449,0.00030455,2]
[424684044,1781046669000,-658.94435767,0.00030455,2]
[424684058,1781046669000,-385.16918777,0.00030455,2]
[424684045,1781046669000,-160.64263772,0.00030455,2]
[424684043,1781046669000,-771.25173993,0.00030455,2]
[424684047,1781046669000,-343.57124387,0.00030455,2]
[424684089,1781046669000,-451.26477125,0.00030455,2]
[424684046,1781046669000,-889.10311528,0.00030455,2]
[424684053,1781046669000,-492.66591952,0.00030455,2]
[424684055,1781046669000,-680.03265435,0.00030455,2]
[424684057,1781046669000,-643.28695616,0.00030455,2]
[424684059,1781046669000,-412.19542883,0.00030455,2]
[424684061,1781046669000,-544.74023561,0.00030455,2]
[424684060,1781046669000,-171.05685801,0.00030455,2]
[424684056,1781046669000,-1565.63939891,0.00030455,2]
[424684049,1781046669000,-689.20345508,0.00030455,2]
[424684088,1781046669000,-165.23089422,0.00030455,2]
[424684071,1781046669000,-1075.38993579,0.00030455,2]
[424684090,1781046669000,-659.19905014,0.00030455,2]
[424684121,1781046669000,-160.14205288,0.00030457,2]
[424684129,1781046669000,-538.37496707,0.00030457,2]
[424684120,1781046669000,-722.87654228,0.00030457,2]
[424684123,1781046669000,-347.18418324,0.00030457,2]
[424684124,1781046669000,-689.6975815,0.00030457,2]
[424684128,1781046669000,-164.41595273,0.00030457,2]
[424684125,1781046669000,-647.68331685,0.00030457,2]
[424684122,1781046669000,-613.54876479,0.00030457,2]
[424684127,1781046669000,-781.84855276,0.00030457,2]
[424684126,1781046669000,-466.61726208,0.00030457,2]
[424684131,1781046669000,-456.09465281,0.00030457,2]
[424684134,1781046669000,-671.89130692,0.00030457,2]
[424684133,1781046669000,-765.51178997,0.00030457,2]
[424684132,1781046669000,-657.78796994,0.00030457,2]
[424684135,1781046669000,-454.83155072,0.00030457,2]
[424684136,1781046669000,-497.32474727,0.00030457,2]
[424684138,1781046669000,-414.88954913,0.00030457,2]
[424684137,1781046669000,-661.25802676,0.00030457,2]
[424684139,1781046669000,-487.43217357,0.00030457,2]
[424684140,1781046669000,-813.85470332,0.00030457,2]
[424684142,1781046669000,-458.17141508,0.00030457,2]
[424684141,1781046669000,-958.86116614,0.00030457,2]
[424684143,1781046669000,-169.3563339,0.00030457,2]
[424684144,1781046669000,-477.67475644,0.00030457,2]
[424684091,1781046669000,-164.69275589,0.00030455,2]
[424684115,1781046669000,-330.35275645,0.00030455,2]
[424684110,1781046669000,-538.08429839,0.00030455,2]
[424684130,1781046669000,-166.78838711,0.00030457,2]
[424684117,1781046669000,-473.00885499,0.00030455,2]
[424684116,1781046669000,-730.14237501,0.00030455,2]
[424684096,1781046669000,-315.84936013,0.00030455,2]
[424684093,1781046669000,-2045.40869421,0.00030455,2]
[424684098,1781046669000,-489.76486554,0.00030455,2]
[424684094,1781046669000,-160.77752205,0.00030455,2]
[424684095,1781046669000,-740.55036402,0.00030455,2]
[424684097,1781046669000,-401.40290523,0.00030455,2]
[424684099,1781046669000,-531.28112208,0.00030455,2]
[424684100,1781046669000,-532.52352901,0.00030455,2]
[424684109,1781046669000,-760.26452788,0.00030455,2]
[424684104,1781046669000,-165.80214408,0.00030455,2]
[424684101,1781046669000,-615.94864541,0.00030455,2]
[424684103,1781046669000,-527.55221202,0.00030455,2]
[424684092,1781046669000,-706.88837582,0.00030455,2]
[424684107,1781046669000,-168.55759593,0.00030455,2]
[424684102,1781046669000,-213.09994071,0.00030455,2]
[424684118,1781046669000,-786.72961477,0.00030455,2]
[424684112,1781046669000,-1905.25687423,0.00030455,2]
[424684114,1781046669000,-534.26828852,0.00030455,2]
[424684113,1781046669000,-661.25107956,0.00030455,2]
[424684119,1781046669000,-765.69854197,0.00030455,2]
[424684106,1781046669000,-450.9135159,0.00030455,2]
[424684108,1781046669000,-651.04532667,0.00030455,2]
[424684105,1781046669000,-678.7177958,0.00030455,2]
[424684111,1781046669000,-677.5990656,0.00030455,2]
[424684175,1781046670000,-229.89624658,0.00030515,2]
[424684186,1781046670000,-150.0,0.00030547,120]
[424684178,1781046670000,-787.48602062,0.00030515,2]
[424684177,1781046670000,-598.47700239,0.00030515,2]
[424684179,1781046670000,-565.98668553,0.00030515,2]
[424684183,1781046670000,-166.59880321,0.00030516,2]
[424684180,1781046670000,-738.83172683,0.00030516,2]
[424684184,1781046670000,-897.18681006,0.00030516,2]
[424684176,1781046670000,-1140.82153703,0.00030515,2]
[424684181,1781046670000,-165.34186517,0.00030516,2]
[424684182,1781046670000,-173.46551754,0.00030516,2]
[424684197,1781046670000,-150.0,0.00030684,120]
[424684188,1781046670000,-12500.0,0.00030625,2]
[424684185,1781046670000,-870.24068017,0.00030516,2]
[424684196,1781046670000,-2624.43,0.00030667,2]
[424684195,1781046670000,-1091.5,0.00030663,7]
[424684189,1781046670000,-22500.0,0.00030625,2]
[424684191,1781046670000,-6465.80478824,0.00030647,4]
[424684190,1781046670000,-1181.13,0.00030635,30]
[424684192,1781046670000,-2024.08696035,0.00030647,4]
[424684194,1781046670000,-1036.7,0.00030663,7]
[424684193,1781046670000,-3328.71680134,0.00030647,4]
[424684199,1781046670000,-152.0,0.00030686,15]
[424684200,1781046670000,-261.77629756,0.00030709,2]
[424684170,1781046670000,-787.55290728,0.00030515,2]
[424684187,1781046670000,-1313.66,0.00030571,10]
[424684167,1781046670000,-268.57093006,0.00030515,2]
[424684150,1781046670000,-659.57087012,0.00030488,2]
[424684168,1781046670000,-553.69719428,0.00030515,2]
[424684198,1781046670000,-166.6875,0.00030685,2]
[424684147,1781046670000,-191.951785,0.00030479,7]
[424684146,1781046670000,-8745.8792292,0.00030467,2]
[424684145,1781046670000,-1067.82293453,0.00030457,2]
[424684149,1781046670000,-6424.78240739,0.00030482,7]
[424684148,1781046670000,-330954.30904577,0.00030482,7]
[424684152,1781046670000,-707.51077689,0.00030488,2]
[424684153,1781046670000,-659.13814921,0.00030488,2]
[424684151,1781046670000,-636.87991938,0.00030488,2]
[424684155,1781046670000,-18391.56,0.000305,2]
[424684162,1781046670000,-12500.0,0.000305,2]
[424684154,1781046670000,-667.57376748,0.00030488,2]
[424684172,1781046670000,-162.25775499,0.00030515,2]
[424684156,1781046670000,-18391.56,0.000305,2]
[424684161,1781046670000,-25000.0,0.000305,2]
[424684157,1781046670000,-55174.68,0.000305,2]
[424684159,1781046670000,-25000.0,0.000305,2]
[424684158,1781046670000,-20691.75,0.000305,2]
[424684163,1781046670000,-22500.0,0.000305,2]
[424684166,1781046670000,-740.21830225,0.00030515,2]
[424684171,1781046670000,-165.51675986,0.00030515,2]
[424684169,1781046670000,-726.92224979,0.00030515,2]
[424684164,1781046670000,-2500.0,0.000305,2]
[424684173,1781046670000,-643.71983975,0.00030515,2]
[424684165,1781046670000,-25000.0,0.000305,2]
[424684174,1781046670000,-341.48344461,0.00030515,2]
[424684160,1781046670000,-2500.0,0.000305,2]
[424684209,1781046670000,-500.1,0.00030757,2]
[424684237,1781046670000,-500.1,0.00030911,2]
[424684202,1781046670000,-17912.39,0.0003075,2]
[424684228,1781046670000,-314.0,0.0003084,30]
[424684238,1781046670000,-500.1,0.00030911,2]
[424684236,1781046670000,-500.1,0.00030911,2]
[424684235,1781046670000,-500.1,0.00030911,2]
[424684244,1781046670000,-250.0,0.00030949,7]
[424684241,1781046670000,-561.91061808,0.00030911,2]
[424684243,1781046670000,-668.65185756,0.00030935,2]
[424684242,1781046670000,-151.0,0.00030935,2]
[424684240,1781046670000,-500.1,0.00030911,2]
[424684239,1781046670000,-500.1,0.00030911,2]
[424684247,1781046670000,-150.0,0.00030958,120]
[424684245,1781046670000,-250.0,0.00030949,7]
[424684225,1781046670000,-277.71236214,0.00030798,2]
[424684248,1781046670000,-420.49,0.00030959,120]
[424684254,1781046670000,-250.0,0.00031,30]
[424684249,1781046670000,-13000.0,0.00031,2]
[424684250,1781046670000,-39999.999999,0.00031,2]
[424684256,1781046670000,-213.716395,0.00031,4]
[424684253,1781046670000,-150.0,0.00031,120]
[424684251,1781046670000,-174.27612789,0.00031,120]
[424684252,1781046670000,-12491.89,0.00031,14]
[424684255,1781046670000,-2499.94,0.00031,2]
[424684258,1781046670000,-6465.80478824,0.00031003,4]
[424684204,1781046670000,-24999.96,0.0003075,2]
[424684257,1781046670000,-22500.0,0.00031,2]
[424684260,1781046670000,-3328.71680134,0.00031003,4]
[424684246,1781046670000,-928.37672208,0.00030956,2]
[424684224,1781046670000,-250.0,0.00030798,2]
[424684259,1781046670000,-2024.08696035,0.00031003,4]
[424684226,1781046670000,-150.0,0.00030821,120]
[424684227,1781046670000,-1639.76981995,0.0003084,2]
[424684207,1781046670000,-449.55,0.0003075,2]
[424684206,1781046670000,-22500.0,0.0003075,2]
[424684201,1781046670000,-343.19,0.00030712,120]
[424684205,1781046670000,-12500.0,0.0003075,2]
[424684210,1781046670000,-500.1,0.00030757,2]
[424684212,1781046670000,-788.19,0.00030785,30]
[424684213,1781046670000,-5000.0,0.00030798,2]
[424684216,1781046670000,-5000.0,0.00030798,2]
[424684214,1781046670000,-5000.0,0.00030798,2]
[424684211,1781046670000,-500.0,0.00030767,2]
[424684215,1781046670000,-5000.0,0.00030798,2]
[424684217,1781046670000,-5000.0,0.00030798,2]
[424684203,1781046670000,-2500.0,0.0003075,2]
[424684219,1781046670000,-5000.0,0.00030798,2]
[424684230,1781046670000,-1000.0,0.00030849,120]
[424684218,1781046670000,-5000.0,0.00030798,2]
[424684231,1781046670000,-772.0,0.00030875,6]
[424684233,1781046670000,-22500.0,0.00030875,2]
[424684234,1781046670000,-1734.53,0.00030882,2]
[424684229,1781046670000,-500.0,0.00030849,120]
[424684208,1781046670000,-25000.0,0.0003075,2]
[424684232,1781046670000,-1689.87,0.00030875,2]
[424684222,1781046670000,-250.0,0.00030798,2]
[424684221,1781046670000,-250.0,0.00030798,2]
[424684223,1781046670000,-250.0,0.00030798,2]
[424684220,1781046670000,-5000.0,0.00030798,2]
[424684309,1781046671000,-984.35752578,0.00031096,2]
[424684288,1781046671000,-2381.57109279,0.00031035,2]
[424684289,1781046671000,-846.998832,0.00031035,2]
[424684290,1781046671000,-957.12317746,0.00031035,2]
[424684292,1781046671000,-766.93595599,0.00031037,2]
[424684293,1781046671000,-862.12197688,0.00031037,2]
[424684295,1781046671000,-826.57253345,0.00031037,2]
[424684296,1781046671000,-1198.57645768,0.00031037,2]
[424684299,1781046671000,-796.09989922,0.00031069,2]
[424684268,1781046671000,-777.924288,0.00031035,2]
[424684294,1781046671000,-956.88973746,0.00031037,2]
[424684301,1781046671000,-823.92268652,0.00031069,2]
[424684300,1781046671000,-884.38847111,0.00031069,2]
[424684297,1781046671000,-1334.77866816,0.00031037,2]
[424684303,1781046671000,-150.0,0.00031095,120]
[424684312,1781046671000,-22500.0,0.00031125,2]
[424684307,1781046671000,-804.64979969,0.00031096,2]
[424684304,1781046671000,-925.27287782,0.00031096,2]
[424684306,1781046671000,-908.65281223,0.00031096,2]
[424684310,1781046671000,-923.53965854,0.00031097,2]
[424684311,1781046671000,-838.04453169,0.00031097,2]
[424684305,1781046671000,-928.24195228,0.00031096,2]
[424684285,1781046671000,-883.61046978,0.00031035,2]
[424684298,1781046671000,-261.77629756,0.00031057,2]
[424684302,1781046671000,-834.46720934,0.00031069,2]
[424684279,1781046671000,-837.91563913,0.00031035,2]
[424684287,1781046671000,-950.33065986,0.00031035,2]
[424684308,1781046671000,-1426.02692129,0.00031096,2]
[424684263,1781046671000,-963.01145157,0.00031035,2]
[424684264,1781046671000,-1027.7688845,0.00031035,2]
[424684261,1781046671000,-150.0,0.00031011,2]
[424684267,1781046671000,-861.50431885,0.00031035,2]
[424684266,1781046671000,-823.68044709,0.00031035,2]
[424684265,1781046671000,-964.06467491,0.00031035,2]
[424684262,1781046671000,-776.06957112,0.00031035,2]
[424684270,1781046671000,-900.70348755,0.00031035,2]
[424684269,1781046671000,-1049.84927606,0.00031035,2]
[424684271,1781046671000,-850.04081794,0.00031035,2]
[424684286,1781046671000,-2556.76086777,0.00031035,2]
[424684276,1781046671000,-882.78117298,0.00031035,2]
[424684278,1781046671000,-1011.97146273,0.00031035,2]
[424684274,1781046671000,-2259.81022547,0.00031035,2]
[424684272,1781046671000,-1957.04924863,0.00031035,2]
[424684273,1781046671000,-804.1086952,0.00031035,2]
[424684275,1781046671000,-1344.23741973,0.00031035,2]
[424684281,1781046671000,-896.93385626,0.00031035,2]
[424684291,1781046671000,-903.59567786,0.00031037,2]
[424684282,1781046671000,-789.96991816,0.00031035,2]
[424684283,1781046671000,-850.92981314,0.00031035,2]
[424684280,1781046671000,-778.22069929,0.00031035,2]
[424684284,1781046671000,-823.99881267,0.00031035,2]
[424684277,1781046671000,-886.06629174,0.00031035,2]
[424684314,1781046671000,-5000.0,0.00031129,2]
[424684330,1781046671000,-415.0,0.00031203,30]
[424684316,1781046671000,-5000.0,0.00031129,2]
[424684346,1781046671000,-326.0,0.00031288,30]
[424684347,1781046671000,-662.0,0.00031343,30]
[424684348,1781046671000,-798.0,0.00031343,30]
[424684350,1781046671000,-320.0,0.00031349,3]
[424684349,1781046671000,-5032.0,0.00031349,10]
[424684351,1781046671000,-665.0,0.00031351,30]
[424684354,1781046671000,-6465.80478824,0.0003136,4]
[424684352,1781046671000,-2143.0,0.00031351,30]
[424684355,1781046671000,-2024.08696035,0.0003136,4]
[424684353,1781046671000,-4051.0,0.00031351,30]
[424684360,1781046671000,-261.77629756,0.00031405,2]
[424684345,1781046671000,-1207.0,0.00031288,30]
[424684361,1781046671000,-772.0,0.00031409,6]
[424684365,1781046671000,-5000.0,0.0003146,2]
[424684356,1781046671000,-3328.71680134,0.0003136,4]
[424684362,1781046671000,-15044.69900198,0.00031424,120]
[424684363,1781046671000,-1227.23284655,0.0003143,4]
[424684359,1781046671000,-466.45946294,0.000314,30]
[424684364,1781046671000,-5000.0,0.0003146,2]
[424684366,1781046671000,-5000.0,0.0003146,2]
[424684357,1781046671000,-150.0,0.00031369,120]
[424684367,1781046671000,-5000.0,0.0003146,2]
[424684368,1781046671000,-5000.0,0.0003146,2]
[424684315,1781046671000,-5000.0,0.00031129,2]
[424684358,1781046671000,-152.0,0.00031371,16]
[424684338,1781046671000,-742.0,0.00031288,30]
[424684340,1781046671000,-2096.0,0.00031288,30]
[424684339,1781046671000,-562.0,0.00031288,30]
[424684337,1781046671000,-343.19,0.00031288,120]
[424684313,1781046671000,-2000.0,0.00031126,7]
[424684317,1781046671000,-5000.0,0.00031129,2]
[424684320,1781046671000,-5000.0,0.00031129,2]
[424684318,1781046671000,-5000.0,0.00031129,2]
[424684322,1781046671000,-250.0,0.00031129,2]
[424684321,1781046671000,-250.0,0.00031129,2]
[424684324,1781046671000,-250.0,0.00031129,2]
[424684323,1781046671000,-250.0,0.00031129,2]
[424684333,1781046671000,-500.1,0.00031223,2]
[424684325,1781046671000,-250.0,0.00031129,2]
[424684326,1781046671000,-250.0,0.00031129,2]
[424684319,1781046671000,-5000.0,0.00031129,2]
[424684331,1781046671000,-500.1,0.00031223,2]
[424684329,1781046671000,-1000.0,0.000312,7]
[424684327,1781046671000,-250.0,0.00031129,2]
[424684332,1781046671000,-500.1,0.00031223,2]
[424684334,1781046671000,-150.0,0.00031232,120]
[424684336,1781046671000,-5770.41,0.0003125,2]
[424684343,1781046671000,-3176.0,0.00031288,30]
[424684335,1781046671000,-166.6875,0.00031233,2]
[424684341,1781046671000,-778.0,0.00031288,30]
[424684328,1781046671000,-1181.13,0.00031133,30]
[424684342,1781046671000,-620.0,0.00031288,30]
[424684344,1781046671000,-698.0,0.00031288,30]
[424684409,1781046672000,-261.77629756,0.00031752,2]
[424684405,1781046672000,-6465.80478824,0.00031716,30]
[424684402,1781046672000,-150.0,0.0003161,2]
[424684404,1781046672000,-150.0,0.00031644,2]
[424684398,1781046672000,-297.65,0.00031601,30]
[424684401,1781046672000,-150.0,0.0003161,2]
[424684412,1781046672000,-5000.0,0.00031791,2]
[424684400,1781046672000,-150.0,0.0003161,2]
[424684403,1781046672000,-187.70845523,0.0003161,2]
[424684411,1781046672000,-166.6875,0.00031781,2]
[424684407,1781046672000,-3328.71680134,0.00031716,30]
[424684423,1781046672000,-1003.62,0.0003182,7]
[424684406,1781046672000,-2024.08696035,0.00031716,30]
[424684413,1781046672000,-5000.0,0.00031791,2]
[424684422,1781046672000,-329.7,0.000318,12]
[424684416,1781046672000,-5000.0,0.00031791,2]
[424684415,1781046672000,-5000.0,0.00031791,2]
[424684421,1781046672000,-250.0,0.00031791,2]
[424684417,1781046672000,-250.0,0.00031791,2]
[424684418,1781046672000,-250.0,0.00031791,2]
[424684419,1781046672000,-250.0,0.00031791,2]
[424684414,1781046672000,-5000.0,0.00031791,2]
[424684397,1781046672000,-566.33,0.000316,30]
[424684424,1781046672000,-1056.66,0.0003182,7]
[424684408,1781046672000,-350.0,0.00031733,21]
[424684399,1781046672000,-150.0,0.0003161,2]
[424684388,1781046672000,-1000.0,0.00031506,120]
[424684393,1781046672000,-1443.41,0.00031507,30]
[424684369,1781046672000,-5000.0,0.0003146,2]
[424684371,1781046672000,-250.0,0.0003146,2]
[424684372,1781046672000,-250.0,0.0003146,2]
[424684370,1781046672000,-250.0,0.0003146,2]
[424684374,1781046672000,-250.0,0.0003146,2]
[424684375,1781046672000,-250.0,0.0003146,2]
[424684376,1781046672000,-201.07443101,0.000315,2]
[424684373,1781046672000,-250.0,0.0003146,2]
[424684378,1781046672000,-1000.0,0.00031506,120]
[424684377,1781046672000,-150.0,0.000315,2]
[424684379,1781046672000,-1000.0,0.00031506,120]
[424684381,1781046672000,-1000.0,0.00031506,120]
[424684382,1781046672000,-1000.0,0.00031506,120]
[424684383,1781046672000,-1000.0,0.00031506,120]
[424684384,1781046672000,-1000.0,0.00031506,120]
[424684387,1781046672000,-1000.0,0.00031506,120]
[424684420,1781046672000,-250.0,0.00031791,2]
[424684386,1781046672000,-1000.0,0.00031506,120]
[424684385,1781046672000,-1000.0,0.00031506,120]
[424684380,1781046672000,-1000.0,0.00031506,120]
[424684390,1781046672000,-179.1094424,0.00031506,120]
[424684392,1781046672000,-1000.0,0.00031507,40]
[424684391,1781046672000,-300.0,0.00031506,14]
[424684394,1781046672000,-150.0,0.00031507,2]
[424684395,1781046672000,-182.600014,0.00031578,5]
[424684396,1781046672000,-150.315888,0.00031589,2]
[424684426,1781046672000,-343.19,0.00031863,120]
[424684389,1781046672000,-265.46853992,0.00031506,120]
[424684427,1781046672000,-6475.04,0.00031902,7]
[424684458,1781046672000,-955.31987907,0.00031939,2]
[424684468,1781046672000,-1005.65343802,0.00031968,2]
[424684467,1781046672000,-1108.24759025,0.00031968,2]
[424684463,1781046672000,-965.57975963,0.00031968,2]
[424684464,1781046672000,-1711.23230555,0.00031968,2]
[424684466,1781046672000,-1181.22903094,0.00031968,2]
[424684462,1781046672000,-1090.38337468,0.00031968,2]
[424684461,1781046672000,-1113.89034274,0.00031968,2]
[424684460,1781046672000,-1110.32745338,0.00031968,2]
[424684459,1781046672000,-772.0,0.00031943,7]
[424684465,1781046672000,-982.65385679,0.00031968,2]
[424684478,1781046672000,-3328.71680134,0.00032073,30]
[424684470,1781046672000,-1007.18204206,0.00032,30]
[424684477,1781046672000,-2024.08696035,0.00032073,30]
[424684479,1781046672000,-261.77629756,0.000321,2]
[424684469,1781046672000,-1281.01,0.00032,7]
[424684474,1781046672000,-500.0,0.00032072,2]
[424684472,1781046672000,-700.0,0.00032,2]
[424684471,1781046672000,-152.0,0.00032,120]
[424684475,1781046672000,-341.0,0.00032072,2]
[424684473,1781046672000,-152.0,0.00032057,17]
[424684476,1781046672000,-6465.80478824,0.00032073,30]
[424684480,1781046672000,-5000.0,0.00032123,2]
[424684481,1781046672000,-5000.0,0.00032123,2]
[424684425,1781046672000,-1114.05206649,0.00031825,2]
[424684457,1781046672000,-1601.73440179,0.00031907,2]
[424684456,1781046672000,-1438.29174921,0.00031907,2]
[424684410,1781046672000,-420.5,0.00031781,120]
[424684452,1781046672000,-1084.31481343,0.00031907,2]
[424684428,1781046672000,-931.28348535,0.00031905,2]
[424684455,1781046672000,-991.88704014,0.00031907,2]
[424684435,1781046672000,-2348.45909836,0.00031905,2]
[424684431,1781046672000,-988.41653651,0.00031905,2]
[424684429,1781046672000,-915.46965168,0.00031905,2]
[424684434,1781046672000,-1020.04898153,0.00031905,2]
[424684430,1781046672000,-927.18578816,0.00031905,2]
[424684433,1781046672000,-1259.81913127,0.00031905,2]
[424684436,1781046672000,-964.93043424,0.00031905,2]
[424684439,1781046672000,-1059.33740758,0.00031905,2]
[424684437,1781046672000,-2711.77227057,0.00031905,2]
[424684438,1781046672000,-1613.08490368,0.00031905,2]
[424684445,1781046672000,-947.96390179,0.00031905,2]
[424684432,1781046672000,-1033.80518261,0.00031905,2]
[424684446,1781046672000,-1021.11577577,0.00031905,2]
[424684442,1781046672000,-1005.49876696,0.00031905,2]
[424684453,1781046672000,-920.32314719,0.00031907,2]
[424684450,1781046672000,-2857.88531135,0.00031905,2]
[424684447,1781046672000,-988.79857521,0.00031905,2]
[424684449,1781046672000,-1140.39679183,0.00031905,2]
[424684451,1781046672000,-1148.54781296,0.00031905,2]
[424684443,1781046672000,-933.86483914,0.00031905,2]
[424684440,1781046672000,-1063.27955009,0.00031905,2]
[424684441,1781046672000,-1214.36575528,0.00031905,2]
[424684444,1781046672000,-1076.32062751,0.00031905,2]
[424684448,1781046672000,-3068.11304132,0.00031905,2]
[424684454,1781046672000,-1034.54637225,0.00031907,2]
[424684530,1781046673000,-150.0,0.00032345,2]
[424684524,1781046673000,-1207.0,0.00032288,30]
[424684523,1781046673000,-698.0,0.00032288,30]
[424684522,1781046673000,-3176.0,0.00032288,30]
[424684527,1781046673000,-166.6875,0.00032329,2]
[424684528,1781046673000,-662.0,0.00032343,30]
[424684532,1781046673000,-150.0,0.00032345,2]
[424684536,1781046673000,-150.0,0.00032345,2]
[424684531,1781046673000,-150.0,0.00032345,2]
[424684537,1781046673000,-665.0,0.00032351,30]
[424684535,1781046673000,-150.0,0.00032345,2]
[424684533,1781046673000,-150.0,0.00032345,2]
[424684534,1781046673000,-150.0,0.00032345,2]
[424684538,1781046673000,-2143.0,0.00032351,30]
[424684539,1781046673000,-4051.0,0.00032351,30]
[424684541,1781046673000,-500.0,0.00032369,2]
[424684540,1781046673000,-200.0,0.00032369,2]
[424684542,1781046673000,-500.0,0.00032369,2]
[424684543,1781046673000,-200.0,0.00032369,2]
[424684517,1781046673000,-742.0,0.00032288,30]
[424684529,1781046673000,-798.0,0.00032343,30]
[424684518,1781046673000,-562.0,0.00032288,30]
[424684512,1781046673000,-191.951785,0.00032229,7]
[424684519,1781046673000,-2096.0,0.00032288,30]
[424684495,1781046673000,-1743.32,0.00032203,2]
[424684496,1781046673000,-1828.88,0.00032203,2]
[424684501,1781046673000,-150.0,0.00032216,2]
[424684502,1781046673000,-150.0,0.00032216,2]
[424684503,1781046673000,-150.0,0.00032216,2]
[424684504,1781046673000,-150.0,0.00032216,2]
[424684508,1781046673000,-382.0,0.00032216,2]
[424684510,1781046673000,-1227.0,0.00032216,2]
[424684509,1781046673000,-1274.0,0.00032216,2]
[424684511,1781046673000,-369.19371428,0.00032222,30]
[424684513,1781046673000,-50000.0,0.00032232,120]
[424684550,1781046673000,-200.0,0.00032369,2]
[424684514,1781046673000,-50000.0,0.00032232,90]
[424684515,1781046673000,-50000.0,0.00032232,60]
[424684506,1781046673000,-3555.0,0.00032216,2]
[424684505,1781046673000,-150.0,0.00032216,2]
[424684507,1781046673000,-1358.0,0.00032216,2]
[424684516,1781046673000,-50000.0,0.00032232,30]
[424684525,1781046673000,-326.0,0.00032288,30]
[424684520,1781046673000,-778.0,0.00032288,30]
[424684526,1781046673000,-301.0,0.000323,120]
[424684521,1781046673000,-620.0,0.00032288,30]
[424684549,1781046673000,-200.0,0.00032369,2]
[424684558,1781046673000,-200.0,0.00032369,2]
[424684547,1781046673000,-200.0,0.00032369,2]
[424684573,1781046673000,-200.0,0.00032369,2]
[424684582,1781046673000,-200.0,0.00032369,2]
[424684576,1781046673000,-500.0,0.00032369,2]
[424684575,1781046673000,-500.0,0.00032369,2]
[424684578,1781046673000,-200.0,0.00032369,2]
[424684577,1781046673000,-200.0,0.00032369,2]
[424684581,1781046673000,-200.0,0.00032369,2]
[424684579,1781046673000,-200.0,0.00032369,2]
[424684580,1781046673000,-200.0,0.00032369,2]
[424684584,1781046673000,-200.0,0.00032369,2]
[424684587,1781046673000,-200.0,0.00032369,2]
[424684585,1781046673000,-200.0,0.00032369,2]
[424684586,1781046673000,-200.0,0.00032369,2]
[424684594,1781046673000,-500.0,0.00032369,2]
[424684591,1781046673000,-200.0,0.00032369,2]
[424684593,1781046673000,-200.0,0.00032369,2]
[424684589,1781046673000,-200.0,0.00032369,2]
[424684590,1781046673000,-200.0,0.00032369,2]
[424684588,1781046673000,-200.0,0.00032369,2]
[424684592,1781046673000,-200.0,0.00032369,2]
[424684500,1781046673000,-150.0,0.00032216,2]
[424684574,1781046673000,-500.0,0.00032369,2]
[424684545,1781046673000,-200.0,0.00032369,2]
[424684572,1781046673000,-200.0,0.00032369,2]
[424684568,1781046673000,-200.0,0.00032369,2]
[424684546,1781046673000,-200.0,0.00032369,2]
[424684544,1781046673000,-200.0,0.00032369,2]
[424684548,1781046673000,-200.0,0.00032369,2]
[424684552,1781046673000,-200.0,0.00032369,2]
[424684561,1781046673000,-200.0,0.00032369,2]
[424684554,1781046673000,-200.0,0.00032369,2]
[424684551,1781046673000,-200.0,0.00032369,2]
[424684557,1781046673000,-200.0,0.00032369,2]